Cogmind - Beta 16 @@@ ROGUE MODE // 2025.11.20 @ 10:02:30 Player: Demo Result: Destroyed by S-10 Pest with Light Assault Rifle Performance ------------- Evolutions (0) 0 Regions Visited (2) 400 Robots Destroyed (11) 55 Value Destroyed (184) 184 Prototype IDs (0) 0 Alien Tech Used (0) 0 Bonus (0) 0 TOTAL SCORE: 639 Bonus ------- None Cogmind --------- Core Integrity 0/250 Matter 298/300 Energy 100/100 System Corruption 0% Temperature Cool (0) Movement Treading (160) Location -10/Mines Parts ------- > --- POWER (1) -------- (None) > --- PROPULSION (2) --- Light Treads Light Treads > --- UTILITY (2) ------ Structural Scanner > --- WEAPON (2) ------- Light Assault Rifle Light Assault Rifle > --- INVENTORY (5) ---- Makeshift Leg Trap Extractor (0/4) Trap Extractor (0/4) Trap Extractor (0/4) Trap Extractor (0/4) Peak State ------------ > --- POWER ------------ (None) > --- PROPULSION ------- Light Treads Light Treads > --- UTILITY ---------- Structural Scanner > --- WEAPON ----------- Light Assault Rifle Light Assault Rifle > --- INVENTORY -------- Makeshift Leg Trap Extractor Trap Extractor Trap Extractor Trap Extractor [Rating: 6] Favorites ----------- Power None Propulsion Light Treads Treads Light Treads Utility Structural Scanner Device Structural Scanner Weapon Light Assault Rifle Ballistic Gun Light Assault Rifle Build | -11 -10 -10 ------- Run | Yrd Mat Min Slots Evolved . | . . . Power . | . . . Propulsion . | . . . Utility . | . . . Weapon . | . . . Parts Attached 8 | 4 1 3 Power . | . . . Engine . | . . . Core . | . . . Reactor . | . . . Propulsion 3 | 2 . 1 Treads 3 | 2 . 1 Leg . | . . . Wheel . | . . . Hover . | . . . Flight . | . . . Utility 1 | . 1 . Device 1 | . 1 . Storage . | . . . Processor . | . . . Hackware . | . . . Protection . | . . . Artifact . | . . . Weapon 4 | 2 . 2 Energy Gun . | . . . Energy Cannon . | . . . Ballistic Gun 4 | 2 . 2 Ballistic Cannon . | . . . Launcher . | . . . Special Weapon . | . . . Impact Weapon . | . . . Slashing Weapon . | . . . Piercing Weapon . | . . . Special Melee Weapon . | . . . Unidentified Prototypes . | . . . Parts Lost 1 | . . 1 Power . | . . . Propulsion 1 | . . 1 Utility . | . . . Weapon . | . . . Highest Loss Streak 1 | . . 1 To Critical Strikes . | . . . Average Backups 4 | . 3 5 Power . | . . . Propulsion . | . . 1 Utility 3 | . 2 4 Weapon . | . . . Tool/Special . | . . . Unused Backups 6 | . 1 5 Power . | . . . Propulsion 1 | . . 1 Utility 5 | . 1 4 Weapon . | . . . Tool/Special . | . . . Average Slot Usage (%) 69 | . 65 70 Treads 27 | . 28 27 Device 12 | . 8 14 Ballistic Gun 28 | . 28 28 Peak Build Rating 6 | 4 5 6 Average Rating 4 | 2 4 5 On Entrance 3 | . 4 5 Avg Prop Armor Cover (%) 28 | 35 28 27 Naked Turns . | . . . Heaviest Build 3 | 2 3 3 Greatest Support 40 | 40 3 3 Greatest Overweight (x) . | . . . Average Overweight (x) . | . . . Largest Inventory Capacity 5 | 5 5 5 Average Capacity 5 | 5 5 5 Most Carried 5 | . 5 5 Average Carried 4 | . 3 4 Final Capacity 5 | 5 5 5 Final Carried 5 | . 5 5 Class Distribution -------------------- 100% | Mutant Dominant Class ---------------- Mutant | -10/Materials Mutant | -10/Mines Resources | -11 -10 -10 ----------- Run | Yrd Mat Min Matter Collected 375 | 193 43 139 Remotely . | . . . Salvage Created 223 | . 43 180 Parts 23 | . 4 19 Haulers Intercepted . | . . . Recyclers Shooed 2 | . 1 1 Parts Field Recycled . | . . . Retrieved Matter . | . . . Parts Self-Destructed . | . . . Prevented . | . . . Parts Restored . | . . . Kills | -11 -10 -10 ------- Run | Yrd Mat Min Combat Hostiles Destroyed 11 | . 3 8 Guns 11 | . 3 8 Classes Destroyed 2 | . 1 1 Swarmer 9 | . 3 6 Grunt 2 | . . 2 Best Kill Streak 4 | . 3 4 Combat Bots Only 4 | . 3 4 Max Kills in Single Turn 1 | . 1 1 Gunslinging . | . . . Exploded . | . . . Melee . | . . . Uniques/NPCs Destroyed . | . . . Combat | -11 -10 -10 -------- Run | Yrd Mat Min Hostile Shots Fired 113 | . 20 93 Missed 39 | . 6 33 Hits 74 | . 14 60 Projectile 74 | . 14 60 Critical Strikes 1 | . . 1 Damage Taken 732 | . 108 624 Core 252 | . 28 224 Absorbed by Shields . | . . . Core Remaining (%) 100 | 100 . . Volleys Fired 51 | . 16 35 Largest 2 | . 2 2 Hottest 40 | . 40 40 Shots Fired 102 | . 32 70 Gun 102 | . 32 70 Cannon . | . . . Launcher . | . . . Special . | . . . Kinetic 102 | . 32 70 Thermal . | . . . Explosive . | . . . Electromagnetic . | . . . Robot Hit Streak 7 | . 7 6 Robot Miss Streak 3 | . 3 3 Penetration Max . | . . . Secondary Targets 1 | . 1 . Max Gunslinging Chain 1 | . 1 . Shots Hit Robots 50 | . 16 34 Core Hits 20 | . 5 15 Critical Kills . | . . . Critical Parts Destroyed . | . . . Critical Strikes . | . . . Melee Attacks . | . . . Impact . | . . . Slashing . | . . . Piercing . | . . . Sneak Attacks . | . . . Combat Hostiles . | . . . Follow-up Attacks . | . . . Damage Inflicted 399 | . 126 273 Guns 399 | . 126 273 Cannons . | . . . Explosions . | . . . Melee . | . . . Ramming . | . . . Kinetic 399 | . 126 273 Thermal . | . . . Explosive . | . . . Electromagnetic . | . . . Impact . | . . . Slashing . | . . . Piercing . | . . . Highest Corruption . | . . . Average Corruption . | . . . Corruption Purged . | . . . Corruption Blocked . | . . . Overload Shots . | . . . Overflow Damage . | . . . Projectiles . | . . . Explosions . | . . . Melee . | . . . Knockbacks . | . . . Impact . | . . . Kinetic . | . . . Secondary . | . . . Self-Inflicted Damage . | . . . Shots . | . . . Rammed . | . . . Targets Rammed . | . . . Kicked . | . . . Crushed . | . . . Highest Temperature 4 | . . 4 Average Temperature 3 | . . 3 Received Heat Transfer 177 | . . 177 Siege Activations . | . . . Martial Activations . | . . . Shielding Activations . | . . . Robots Disrupted . | . . . Combat Hostiles . | . . . Robots Corrupted . | . . . Combat Hostiles . | . . . Parts Fried . | . . . Impact Corruptions . | . . . Robots Melted . | . . . Combat Hostiles . | . . . Parts Melted . | . . . Heat Transferred . | . . . Parts Sabotaged . | . . . Parts Stolen . | . . . Parts Stripped . | . . . Power Chain Reactions . | . . . Alert | -11 -10 -10 ------- Run | Yrd Mat Min Maximum Alert Level 1 | . . 1 Low Security (%) 83 | 100 100 76 Level 1 16 | . . 23 Level 2 . | . . . Level 3 . | . . . Level 4 . | . . . Level 5 . | . . . High Security . | . . . Max Security . | . . . Peak Influence 230 | . 60 230 Initial 15 | . . 15 Average 98 | . 21 134 Influence Increases 470 | . 70 400 Destroy 0b10 Robot/C 240 | . 60 180 Destroy Leader 50 | . 10 40 Lose Combat Pursuer 180 | . . 180 Influence Decreases 280 | . 30 250 Entered New Map 25 | . . 25 Time Decay 205 | . 30 175 Lost Part 10 | . . 10 Lost Ally 40 | . . 40 Squads Dispatched 1 | . 1 . Investigation . | . . . Extermination . | . . . Reinforcement 1 | . 1 . Assault . | . . . Garrison . | . . . Intercept . | . . . Searches Triggered . | . . . Construction Impeded . | . . . Haulers Reinforced . | . . . Active Scanning Responses . | . . . Cargo Convoy Interrupts . | . . . Stealth | -11 -10 -10 --------- Run | Yrd Mat Min Distress Signals 2 | . 1 1 Communications Jammed . | . . . Distress Signals . | . . . Times Spotted 29 | . 6 23 Peak Tracking Total 5 | . 5 5 Tactical Retreats 6 | . . 6 Traps | -11 -10 -10 ------- Run | Yrd Mat Min Traps Triggered . | . . . Indirectly . | . . . Trap Hack Attempts . | . . . Triggered . | . . . Disarmed . | . . . Reprogrammed . | . . . Reused . | . . . Traps Extracted . | . . . Installed . | . . . Triggered . | . . . Machines | -11 -10 -10 ---------- Run | Yrd Mat Min Machines Disabled . | . . . Max in Single Turn . | . . . Machines Repaired . | . . . Machines Dismantled . | . . . Machines Sabotaged . | . . . Overloaded Fab Kills . | . . . Hacking | -11 -10 -10 --------- Run | Yrd Mat Min Machines Accessed 1 | . 1 . Terminals 1 | . 1 . Fabricators . | . . . Repair Stations . | . . . Recycling Units . | . . . Scanalyzers . | . . . Garrison Access . | . . . Total Hacks 5 | . 5 . Successful 1 | . 1 . Failed 4 | . 4 . Catastrophic 1 | . 1 . Database Lockouts . | . . . Manual . | . . . Terminals 5 | . 5 . Fabricators . | . . . Repair Stations . | . . . Recycling Units . | . . . Scanalyzers . | . . . Garrison Access . | . . . Terminal Hacks 1 | . 1 . Locate Traps 1 | . 1 . Fabricator Hacks . | . . . Repair Station Hacks . | . . . Recycling Unit Hacks . | . . . Scanalyzer . | . . . Garrison Access Hacks . | . . . Unauthorized Hacks . | . . . Terminals . | . . . Fabricators . | . . . Repair Stations . | . . . Recycling Units . | . . . Scanalyzers . | . . . Garrison Access . | . . . Data Cores Recovered . | . . . Used . | . . . Hacking Detections 1 | . 1 . Full Trace Events 1 | . 1 . Feedback Events . | . . . Feedback Blocked . | . . . Robot Schematics Acquired . | . . . Robots Built . | . . . Authchips . | . . . Time . | . . . Total Robot Build Rating . | . . . Part Schematics Acquired . | . . . Parts Built . | . . . Authchips . | . . . Time . | . . . Total Part Build Rating . | . . . Part Studies Acquired . | . . . Parts Repaired . | . . . Time . | . . . Parts Recycled . | . . . Recycled Matter . | . . . Retrieved Matter . | . . . Retrieved Components . | . . . Parts Scanalyzed . | . . . Part Schematics Acquired . | . . . Parts Damaged . | . . . Bothacking | -11 -10 -10 ------------ Run | Yrd Mat Min Used RIF Installer . | . . . Robots Hacked . | . . . Non-combat . | . . . Combat . | . . . Robot Hacks Applied . | . . . Relay Couplers Released . | . . . Fabnet Peak Effective % . | . . . Robots Rewired . | . . . Allies Hacked . | . . . Hacks Repelled . | . . . Allies | -11 -10 -10 -------- Run | Yrd Mat Min Total Allies 2 | . . 2 Largest Group 2 | . . 2 Highest-Rated Group 45 | . . 45 Highest-Rated Ally 31 | . . 31 Total Orders . | . . . Ally Attacks 10 | . . 10 Total Damage 148 | . . 148 Kills 1 | . . 1 Allies Corrupted . | . . . Allies Melted . | . . . Intel | -11 -10 -10 ------- Run | Yrd Mat Min Active Infowar (turns) 441 | . 72 369 Structural 441 | . 72 369 Robot Analysis Total . | . . . Derelict Logs Recovered 1 | . . 1 Drone Launches . | . . . Drone Recoveries . | . . . Exploration | -11 -10 -10 ------------- Run | Yrd Mat Min Turns Passed 529 | 47 113 369 Spaces Moved 741 | 75 127 539 Core 738 | 72 127 539 Treads 3 | 3 . . Legs . | . . . Wheels . | . . . Hover . | . . . Flight . | . . . Fastest Speed 50 | 50 50 50 Average Speed 50 | 54 50 50 Slowest Speed 160 | 160 50 50 Overloaded Moves . | . . . Propulsion Burnouts . | . . . Robots Hopped . | . . . Potential Cave-ins . | . . . Cave-ins Triggered . | . . . Exploration Rate (%) 41 | 3 35 87 Regions Visited 2 Branch Regions 1 Pre-discovered Areas 1 | . . 1 Known Exits Taken . | . . . Unknown Exits Taken 2 | 1 1 . Scrap Searched 1 | . . 1 Spaces Dug . | . . . Terrain Destroyed . | . . . Melee . | . . . Projectile . | . . . AOE . | . . . Terrain Rammed . | . . . Walls Destroyed . | . . . Machines Disabled . | . . . Actions | -11 -10 -10 --------- Run | Yrd Mat Min Total 811 | 78 150 583 Wait 3 | . . 3 Move 739 | 74 126 539 Hop . | . . . Pick Up 7 | . 6 1 Fast Attach 5 | 4 1 . Attach 1 | . . 1 Detach . | . . . Swap 2 | . . 2 Drop 3 | . 1 2 Fire 51 | . 16 35 Melee . | . . . Ram . | . . . Kick . | . . . Crush . | . . . Escape Stasis . | . . . Rewire . | . . . Trap . | . . . Miscellaneous . | . . . Route ------- -11/Scrapyard -10/Materials -10/Mines (discovered 1 exit: [*Mat]) History --------- Turn | Location | Event 3 | -11/Scrapyard | Discovered new exit (range 15) 48 | -11/Scrapyard | Entered Materials 157 | -10/Materials | Discovered new exit (range 10) 161 | -10/Materials | Entered Mines 287 | -10/Mines | Core integrity fell below 50% 317 | -10/Mines | Found a Scrap Suit stashed away for nefarious purposes 321 | -10/Mines | Build established: Mutant 321 | -10/Mines | Learned location of Recycling (-8) 357 | -10/Mines | Core integrity fell below 20% 490 | -10/Mines | Discovered new exit (range 5) 530 | -10/Mines | Destroyed by S-10 Pest with Light Assault Rifle Last Messages --------------- World map updated: -8/Recycling. 00385_ S-10 Pest destroyed. 00406_ Acquired 13 matter. 00411_ Acquired 22 matter. 00413_ K-01 Serf collects debris. 00417_ S-10 Pest destroyed. 00417_ K-01 Serf collects debris. 00420_ U-05 Engineer sends out distress signal. 00440_ T-07 Excavator destroyed. 00442_ Lgt. Treads destroyed. 00442_ G-47 Trooper destroyed. 00443_ R-06 Scavenger collects Ion Engine. 00445_ Acquired 10 matter. 00448_ S-10 Pest destroyed. 00449_ Acquired 2 matter. 00454_ K-01 Serf collects debris. 00459_ Acquired Mak. Leg. 00462_ K-01 Serf collects debris. 00490_ EXIT=FOUND 00503_ Acquired 10 matter. Map ----- +----------------------------------------------------+ | ??##### ### ##################### ##?? | | ????### #### #### ############### ##?? | | ????## ### ## ###?? | | ????## ###?? | | ????### ##### ###??? | | ????###### ##########??? | | ?????###### ## #########???? | | ????????#### #### ####????????? | | ?????????#### ###### ###????????? | | ??????????############### ##????????? | | ? ##???????########??##### ##????????? | | ? ##???????????????????#### ==!##????????? | | ##????????????????????######%[==##????????? | | ##?????????????????????######[*###????????? | | ##????????????????????????####%###????????? | | #####????????????????????????###[######?????? | | ######????????????????????????##*######?????? | | ###?????????????######?????##** ##?????? | | ##????????????########????##### ##?????? | | ########??????### ####???##### ##?????? | | #########????### #####????## ##?????? | | ## ########## #####???## ##?????? | | ######## ####??## ##?????? | | #### s ####?## ##?????? | | ## ss ###### ##?????? | | ## @ ##### ##?????? | | ## #### #### ##?????? | | #### #### ######## t# ##?????? | | #### ##### ############ ###????? | | ## ##### #####????### ###????? | | ##?## ##????????### ##????? | | ###### ####??????#### ##????? | | ####### ####???????#### ##????? | | # ## ### ##????????#### ##????? | | ##### ### """ ##?????????#### ###???? | | ##### ### """ ##??????????### ####??? | | ##### ### """ ##???????????### ####?? | | ##### ### ##???????????### ###?? | | %= ## ### """ ##????????????## ##?? | | ### """ ##????????????## ##?? | | ### """ ##???????????### ###? | | # ### ##???????????### ###? | | # ### """ ##???????????## ##? | | # ### """ ##???????????## ##? | | """ ##???????????## ###? | | ##??????????## #######? | | ## ##??????????## #######?? | | ## ##??????????### ####?????? | | ##? ##??????????########??????? | | ##? # #####???????????""""##???????? | +----------------------------------------------------+ Best States ------------- Heat Dissipation 25 Energy Generation 5 Energy Capacity 100 Matter Stores 300 Matter Capacity 300 Sight Range 16 Terrain Scan Density 10 Evasion (%) 50 Recoil Reduction 2 Item Schematics ----------------- None Robot Schematics ------------------ None Fabricated ------------ Nothing Repaired ---------- Nothing Studied --------- None Alien Tech Used ----------------- None Achievements -------------- None Challenges ------------ None Game ------ Seed CoilNavigationRailcannon Manual? 0 Play Time 00:05:27 Cumulative 420.4 hours Start 2025.11.20 @ 09:59:03 End 2025.11.20 @ 10:02:30 Sessions 1 Manual Loads 0 Difficulty Rogue Special Mode None Game No. 389 Rogue 389 Adventurer 0 Explorer 0 Win Type - Total 3 Types 2/1/0/0/0/0/0/0/0/0 Lore% 85 Gallery% 84 Achievement% 64 Wizard Run 0 Options --------- Layout 1 ASCII 0 Keyboard 0 Movement Numpad Keybinds 0 Fullscreen 1 Font 24/Smallcaps Map View 50x35 Zoom Use 0% Tactical HUD 1 Map Filters NONE Filters NONE Steam 1 RUN: 2b258f0b-71e7-4435-927c-605bde257986